Workbook

Sheet I кв.2016
A2: Сведения об исполнении бюджета муниципального района по доходам за I квартал 2016 года
G3: (тыс. рублей)
B4: Исполнено за | C4: План на | E4: Исполнено за | F4: Поступило в % к
B5: I квартал | C5: 2017 год | D5: I квартал | E5: I квартал | F5: к соотв. | G5: плану
B6: 2016 года | D6: 2017 года | E6: 2017 года | F6: периоду | G6: I квартала
F7: 2017 года | G7: 2017 года
A8: 1 | B8: 2 | C8: 3 | D8: 4 | E8: 5 | F8: 6 | G8: 7
A9: ВСЕГО ДОХОДЫ | B9: =B10+B26 -> 136468.5 | C9: =C10+C26 -> 561566.6 | D9: =D10+D26 -> 136033.2 | E9: =E10+E26 -> 139481.9 | F9: =E9/B9*100 -> 102.2081286 | G9: =E9/D9*100 -> 102.5351899 | I9: =1000 -> 1000
A10: НАЛОГОВЫЕ И НЕНАЛОГОВЫЕ ДОХОДЫ | B10: =B11+B19 -> 35401.1 | C10: =C11+C19 -> 180173.6 | D10: =D11+D19 -> 35390.5 | E10: =E11+E19 -> 35663.6 | F10: =E10/B10*100 -> 100.7415024 | G10: =E10/D10*100 -> 100.771676
A11: НАЛОГОВЫЕ ДОХОДЫ | B11: =SUM(B12:B18) -> 32982.1 | C11: =SUM(C12:C18) -> 158397.4 | D11: =SUM(D12:D18) -> 32624 | E11: =SUM(E12:E18) -> 32778.9 | F11: 99.38390824 | G11: 100.4748038
A12: Налог на доходы физических лиц | B12: 27783.5 | C12: 138002.6 | D12: 28150 | E12: 28247 | F12: =E12/B12*100 -> 101.6682563 | G12: =E12/D12*100 -> 100.3445826
A13: Акцизы по подакцизным товарам (продукции), производимым на территории Российской Федерации | B13: 1931.1 | C13: 6761.6 | D13: 1690 | E13: 1698.2 | F13: 87.93951634 | G13: 100.4852071
A14: Единый налог на вмененный доход | B14: 2554.5 | C14: 10190 | D14: 2200 | E14: 2207.7 | F14: 86.42395772 | G14: 100.35
A15: Единый сельскохозяйственный налог | B15: 26.4 | C15: 103 | D15: 9 | E15: 11.1 | F15: 42.04545455 | G15: 123.3333333
A16: Налог, взимаемый в связи с применением патентной системы налогообложения | B16: 71.6 | C16: 90 | D16: 15 | E16: 33.5 | F16: 46.7877095 | G16: 223.3333333
A17: Государственная пошлина | B17: 614.8 | C17: 3250 | D17: 560 | E17: 581.4 | F17: 94.56733897 | G17: 103.8214286
A18: Задолженность и перерасчеты по отмененным налогам, сборам и иным обязательным платежам | B18: 0.2 | C18: 0.2 | D18: 0 | F18: 0
A19: НЕНАЛОГОВЫЕ ДОХОДЫ | B19: =SUM(B20:B25) -> 2419 | C19: =C20+C21+C22+C23+C24+C25 -> 21776.2 | D19: =D20+D21+D22+D23+D24+D25 -> 2766.5 | E19: 2884.7 | F19: 119.2517569 | G19: 104.2725465
A20: Доходы от использования имущества, находящегося в государственной и муниципальной собственности | B20: 1334.6 | C20: 9393.4 | D20: 1652 | E20: 1669.5 | F20: 125.093661 | G20: 101.059322
A21: Платежи при пользовании природными ресурсами | B21: 414.9 | C21: 1132.8 | D21: 282 | E21: 349.4 | F21: 84.21306339 | G21: 123.9007092
A22: Доходы от оказания платных услуг (работ) и компенсации затрат государства | B22: 0 | C22: 0 | D22: 0 | E22: 13.4
A23: Доходы от продажи материальных и нематериальных активов | B23: 228.5 | C23: 8900 | D23: 475 | E23: 475.7 | F23: 208.1838074 | G23: 100.1473684
A24: Штрафы, санкции, возмещение ущерба | B24: 349.6 | C24: 2350 | D24: 357.5 | E24: 377.1 | F24: 107.8661327 | G24: 105.4825175
A25: Прочие неналоговые доходы | B25: 91.4 | C25: 0 | D25: 0 | E25: -0.4 | F25: -0.4376367615
A26: БЕЗВОЗМЕЗДНЫЕ ПОСТУПЛЕНИЯ | B26: =SUM(B27:B32) -> 101067.4 | C26: =SUM(C27:C32) -> 381393 | D26: =SUM(D27:D32) -> 100642.7 | E26: =SUM(E27:E32) -> 103818.3 | F26: 102.721847 | G26: 103.1553208
A27: Дотации бюджетам бюджетной системы Российской Федерации | B27: 350 | F27: 0
A28: Субсидии бюджетам бюджетной системы Российской Федерации (межбюджетные субсидии) | B28: 11790.3 | C28: 49617.4 | D28: 18137.9 | E28: 18137.9 | F28: 153.8374766 | G28: 100
A29: Субвенции бюджетам бюджетной системы Российской Федерации | B29: 91663.3 | C29: 331464.9 | D29: 82696.4 | E29: 85866.4 | F29: 93.67587682 | G29: 103.8332987
A30: Иные межбюджетные трансферты | B30: 175.8 | C30: 521 | D30: 18.7 | E30: 18.7 | F30: 10.6370876 | G30: 100
A31: Доходы бюджетов бюджетной системы Российской Федерации от возврата бюджетами бюджетной системы Российской Федерации и организациями остатков субсидий, субвенций и иных межбюджетных трансфертов, имеющих целевое назначение, прошлых лет | B31: 0 | C31: 0 | E31: 5.6
A32: Возврат остатков субсидий, субвенций и иных межбюджетных трансфертов, имеющих целевое назначение, прошлых лет | B32: -2912 | C32: -210.3 | D32: -210.3 | E32: -210.3 | F32: 7.221840659 | G32: 100
